bitfinex/quotes_ETHUSD_20241216
["timestamp","ask_amount","ask_price","bid_price","bid_amount"]
[1734325744132,0.8001,3948.6,3948.0,2.13036286]
[1734325744445,0.8001,3948.6,3948.1,0.85219885]
[1734325744585,0.8001,3948.6,3948.1,2.8607666]
[1734325744784,0.8001,3948.6,3948.1,2.00856775]
[1734325745038,0.8001,3948.6,3948.2,2.00856775]
[1734325746647,0.8753684,3948.5,3948.2,2.00856775]
[1734325747006,0.8001,3948.6,3948.2,2.00856775]
[1734325747207,0.8001,3948.6,3948.2,2.31503159]
[1734325747753,0.8001,3948.6,3948.3,2.00856775]
[1734325751939,0.7501,3948.4,3948.3,2.00856775]
[1734325752138,0.7501,3948.4,3947.6,1.05607062]
[1734325752343,0.7501,3948.4,3947.5,3.18626965]
[1734325752508,0.87514908,3948.3,3947.6,2.13019903]
[1734325752708,0.87514908,3948.3,3947.7,0.85207961]
[1734325752936,0.87514908,3948.3,3947.5,1.05607062]
[1734325753136,0.87514908,3948.3,3947.6,1.54336804]
[1734325753339,0.87514908,3948.3,3947.7,2.1302461]
[1734325753544,0.87514908,3948.3,3947.4,2.05314077]
[1734325753545,0.785,3948.2,3947.4,2.05314077]
[1734325753762,0.785,3948.2,3947.5,2.13039911]
[1734325753763,1.66016938,3948.2,3947.5,2.13039911]
[1734325754058,0.87511926,3948.1,3947.6,0.85215964]
[1734325754258,0.785,3948.2,3947.4,0.99707015]
[1734325754559,0.785,3948.2,3947.5,2.13049523]
[1734325754702,0.785,3948.2,3947.6,0.85219809]
[1734325755059,0.785,3948.0,3947.3,3.06463837]
[1734325755267,0.785,3948.0,3947.4,2.1404791]
[1734325755822,0.785,3948.0,3947.4,3.19654972]
[1734325756218,0.785,3948.0,3947.5,2.1404791]
[1734325756423,0.785,3948.0,3947.6,0.85225863]
[1734325756618,0.785,3948.0,3947.3,3.06463837]
[1734325756824,0.785,3948.0,3947.4,2.96494553]
[1734325757023,0.785,3948.0,3947.5,2.14702208]
[1734325757325,0.785,3948.0,3947.6,0.85880883]
[1734325757556,0.785,3948.0,3947.4,2.87106422]
[1734325757761,0.785,3948.0,3947.5,2.14703783]
[1734325757957,0.785,3948.0,3947.6,1.56148211]
[1734325758271,0.785,3948.0,3947.4,2.87106422]
[1734325758420,0.785,3948.0,3947.5,2.14708865]
[1734325758622,0.785,3948.0,3947.6,0.85883546]
[1734325758855,0.785,3948.0,3947.4,2.87106422]
[1734325759060,0.785,3948.0,3947.5,2.14709232]
[1734325759236,0.785,3948.0,3947.3,2.00856775]
[1734325759436,0.785,3948.0,3947.4,2.14712908]
[1734325759638,0.785,3948.0,3947.5,0.85885163]
[1734325759824,0.785,3948.0,3947.3,3.06463837]
[1734325760049,0.785,3948.0,3947.4,2.14709431]
[1734325760626,0.785,3948.0,3947.7,0.99707015]
[1734325760863,0.7989,3948.4,3947.8,3.39184996]
[1734325761066,1.05510399,3948.6,3947.8,3.39184996]
[1734325761067,1.85400399,3948.7,3948.3,0.99707015]
[1734325761369,1.05510399,3949.1,3948.7,2.53247]
[1734325761572,2.11502953,3949.4,3948.9,0.99707015]
[1734325761573,1.05510399,3949.4,3948.9,0.99707015]
[1734325761881,0.7896,3949.5,3948.9,0.99707015]
[1734325762080,0.87510255,3949.4,3948.8,2.53239]
[1734325762224,0.7896,3949.5,3948.9,0.87721638]
[1734325762415,0.7896,3949.5,3948.8,0.57478365]
[1734325768025,2.53173,3949.9,3948.9,0.81]
[1734325768026,0.824,3949.9,3948.9,0.81]
[1734325768339,5.11502953,3950.4,3949.3,2.15937592]
[1734325768340,0.824,3950.3,3949.3,2.15937592]
[1734325768542,0.824,3950.3,3949.4,0.81]
[1734325768739,0.824,3950.7,3949.4,0.81]
[1734325768938,0.824,3950.7,3949.6,2.53187]
[1734325769853,3.35519,3950.7,3949.5,0.40254465]
[1734325770473,0.824,3950.7,3949.6,2.53188]
[1734325770674,0.824,3950.7,3949.7,0.37444247]
[1734325771265,0.824,3950.7,3949.8,0.81]
[1734325772845,0.824,3950.7,3949.8,3.34177]
[1734325774291,0.824,3950.7,3949.9,2.15937592]
[1734325774474,0.824,3950.7,3949.5,0.40254465]
[1734325774475,0.97300079,3951.0,3950.5,2.5313]
[1734325774989,0.19360079,3951.0,3950.5,2.5313]
[1734325775488,0.19360079,3951.0,3950.6,2.53125]
[1734325775653,0.19360079,3951.0,3950.6,3.29095]
[1734325775851,0.19360079,3951.0,3950.7,0.329095]
[1734325776071,0.19360079,3951.0,3950.8,2.53112]
[1734325778176,0.19360079,3951.0,3950.9,2.53106]
[1734325778373,0.19360079,3951.0,3950.9,3.29076]
[1734325778588,0.19360079,3951.0,3950.9,6.29076]
[1734325778791,0.19360079,3951.0,3950.9,7.97180509]
[1734325783305,0.7647,3952.8,3951.7,0.7742]
[1734325783465,0.7647,3952.8,3951.7,2.93357592]
[1734325783663,0.7647,3952.8,3951.8,0.54641759]
[1734325783891,3.29457,3952.8,3951.8,0.54641759]
[1734325784964,0.7647,3952.8,3951.8,0.54641759]
[1734325785313,2.52991,3952.7,3951.8,0.54641759]
[1734325786501,0.7647,3952.8,3951.8,0.54641759]
[1734325786818,3.29456,3952.8,3951.9,0.13206176]
[1734325788176,2.52991,3952.7,3951.9,0.13206176]
[1734325788986,0.7647,3952.8,3951.9,0.13206176]
[1734325789574,0.75555434,3952.8,3951.9,0.13206176]
[1734325789771,0.75555434,3952.8,3952.0,0.39832193]
[1734325789976,3.50580793,3953.7,3952.0,0.39832193]
[1734325789977,1.90418342,3953.6,3952.3,2.92997592]
[1734325790175,0.7742,3954.8,3952.3,2.92997592]
[1734325790176,2.52895,3954.2,3952.8,2.52983]
[1734325790478,4.43287342,3954.7,3953.0,2.52972]
[1734325790717,4.43286342,3954.7,3953.1,2.15937592]
[1734325791019,2.52889,3954.3,3953.1,2.15937592]
[1734325791414,1.90418342,3954.6,3953.1,2.15937592]
[1734325792327,2.52884,3954.4,3953.2,3.30017]
[1734325792677,0.8219,3954.4,3953.2,0.7706]
[1734325792879,4.43288342,3954.6,3953.2,0.7706]
[1734325792880,4.43288342,3954.6,3953.4,2.52946]
[1734325793122,0.8219,3954.7,3953.5,3.34719]
[1734325793721,0.8219,3954.7,3953.5,5.50656592]
[1734325793926,2.52883,3954.4,3953.5,2.97717592]
[1734325794093,3.35055,3954.7,3953.5,0.8178]
[1734325794295,2.52902,3954.1,3953.2,0.8178]
[1734325794829,0.8219,3954.2,3953.2,0.8178]
[1734325795327,0.8219,3954.2,3953.2,3.8178]
[1734325795528,0.8219,3954.2,3953.2,4.18565314]
[1734325795887,2.52889,3954.3,3953.2,4.18565314]
[1734325796398,2.52896,3954.2,3953.2,4.18565314]
[1734325796925,2.52909,3954.0,3953.2,0.8178]
[1734325797122,2.52915,3953.9,3953.2,0.8178]
[1734325797819,2.529,3954.2,3953.2,0.8178]
[1734325798337,3.35072,3954.5,3953.2,3.34738]
[1734325798535,3.35072,3954.5,3953.2,3.0]
[1734325798682,3.35072,3954.5,3953.3,0.8187]
[1734325798886,3.35072,3954.5,3953.3,1.41650759]
[1734325799276,3.35072,3954.5,3953.4,0.8187]
[1734325799277,0.8219,3954.5,3953.4,0.8187]
[1734325800028,3.35066,3954.5,3953.4,0.8187]
[1734325800336,0.8219,3954.5,3953.4,0.8187]
[1734325800505,0.27260834,3954.4,3953.4,0.8187]
[1734325800706,0.27260834,3954.4,3953.1,0.7892]
[1734325800892,0.814,3953.9,3953.1,0.7892]
[1734325801090,3.34314,3953.9,3953.1,0.7892]
[1734325801993,0.814,3953.9,3953.1,0.7892]
[1734325802835,0.814,3953.9,3952.8,0.7772]
[1734325803038,3.29675,3953.3,3952.5,2.97423645]
[1734325803239,0.7672,3953.3,3952.5,2.97423645]
[1734325804462,3.29676,3953.3,3952.5,2.97423645]
[1734325805356,2.52926,3953.8,3952.5,2.97423645]
[1734325805524,0.7863,3953.6,3952.5,2.97423645]
[1734325806055,1.117856,3953.6,3952.5,2.97423645]
[1734325806259,0.7863,3953.6,3952.5,2.97423645]
[1734325806573,3.3157,3953.6,3952.5,2.97423645]
[1734325806932,2.52941,3953.5,3952.5,2.97423645]
[1734325807411,2.52954,3953.3,3952.5,2.97423645]
[1734325807888,0.7863,3953.6,3952.5,2.97423645]
[1734325808158,2.52941,3953.5,3952.5,2.97423645]
[1734325809513,2.52941,3953.5,3952.6,2.16473645]
[1734325810312,2.52947,3953.4,3952.6,2.16473645]
[1734325810555,0.331571,3953.5,3952.6,2.16473645]
[1734325810757,3.31566,3953.6,3952.6,2.16473645]
[1734325810961,2.5294,3953.5,3952.6,2.16473645]
[1734325812363,0.7863,3953.6,3952.6,2.16473645]
[1734325812364,2.52946,3953.4,3952.6,2.16473645]
[1734325812713,3.31564,3953.6,3952.6,2.16473645]
[1734325812918,1.56120134,3953.6,3952.6,2.16473645]
[1734325813330,2.52948,3953.4,3952.6,2.16473645]
[1734325813824,0.7863,3953.6,3952.6,2.16473645]
[1734325813825,3.31565,3953.6,3952.6,2.16473645]
[1734325814018,2.52947,3953.4,3952.6,2.16473645]
[1734325814671,1.90418342,3953.9,3952.7,0.7809]
[1734325815170,1.90418342,3953.9,3952.8,2.16474614]
[1734325815362,1.90418342,3953.9,3952.9,0.27343218]
[1734325815574,1.90418342,3953.9,3953.0,0.7709]
[1734325815797,1.90418342,3953.9,3953.0,3.30059]
[1734325815932,1.90418342,3953.9,3953.1,2.52964]
[1734325816248,1.90418342,3953.9,3953.1,4.69438614]
[1734325816577,1.90418342,3953.9,3953.2,2.16474614]
[1734325817088,0.46881859,3954.4,3953.2,2.16474614]
[1734325817089,0.46881859,3954.4,3953.3,0.7709]
[1734325817268,2.52877,3954.5,3953.5,0.7709]
[1734325817656,0.8009,3954.6,3953.5,3.3003]
[1734325817831,0.8009,3954.6,3953.5,0.7709]
[1734325818248,0.332952,3954.6,3953.5,0.7709]
[1734325818449,0.332952,3954.6,3953.6,0.7709]
[1734325818689,3.8009,3954.9,3953.6,0.7709]
[1734325818871,3.8009,3954.9,3953.6,3.30022]
[1734325819053,3.8009,3954.9,3953.3,2.52952]
[1734325819232,0.8009,3954.9,3953.7,2.52925]
[1734325819438,0.332935,3954.8,3953.8,0.7709]
[1734325821035,0.8009,3954.9,3953.8,3.30009]
[1734325821362,1.90418342,3955.3,3954.2,2.52895]
[1734325821363,0.8009,3955.1,3954.2,2.52895]
[1734325821704,0.8009,3955.1,3953.3,2.52952]
[1734325821705,2.52801,3955.7,3954.6,0.7709]
[1734325822387,2.52801,3955.7,3954.6,3.29959]
[1734325822945,2.52801,3955.7,3954.7,2.14782259]
[1734325824241,3.32877,3955.9,3954.8,0.7781]
[1734325824688,2.52794,3955.8,3954.9,2.13520557]
[1734325825295,2.52794,3955.8,3954.9,2.67940313]
[1734325825641,4.43198342,3956.1,3955.0,2.91068653]
[1734325825991,4.43198342,3956.1,3955.1,2.13468653]
[1734325827090,2.52781,3956.0,3955.2,0.7765]
[1734325827291,1.90418342,3956.1,3955.2,0.7765]
[1734325827491,2.52793,3955.8,3955.2,2.91118653]
[1734325827939,2.5278,3956.0,3955.2,2.91118653]
[1734325829144,2.5278,3956.0,3955.2,3.25672494]
[1734325829402,4.43183342,3956.3,3955.3,2.13425883]
[1734325829559,1.90418342,3956.3,3955.3,2.13425883]
[1734325829904,2.52781,3956.0,3955.3,2.13425883]
[1734325831262,2.52788,3955.9,3955.3,2.13425883]
[1734325831856,2.52806,3955.6,3955.3,2.13425883]
[1734325832055,0.7698,3956.3,3955.3,2.13425883]
[1734325832295,2.52794,3955.8,3955.3,2.13425883]
[1734325832449,0.7698,3956.3,3955.4,0.29107588]
[1734325832654,2.52767,3956.2,3955.4,0.29107588]
[1734325832988,2.52776,3956.1,3955.5,0.7778]
[1734325833187,2.52755,3956.4,3955.5,0.7778]
[1734325833489,2.52787,3955.9,3955.5,0.7778]
[1734325833991,2.51644505,3955.9,3955.5,0.7778]
[1734325834193,2.52773,3956.2,3955.5,1.06900588]
[1734325834781,2.52793,3955.9,3955.5,0.7778]
[1734325835654,2.52794,3955.8,3955.5,0.7778]
[1734325836455,2.52782,3956.0,3955.5,0.7778]
[1734325836798,2.52788,3955.9,3955.5,0.7778]
[1734325837797,2.52796,3955.8,3955.5,0.7778]
[1734325837992,1.90418342,3956.4,3955.5,0.7778]
[1734325838214,2.52778,3956.1,3955.5,1.06900588]
[1734325838513,0.7698,3956.5,3955.5,1.06900588]
[1734325838514,2.52762,3956.3,3955.5,1.06900588]
[1734325839391,2.52762,3956.3,3955.6,2.13413699]
[1734325839591,2.52762,3956.3,3955.7,0.32031429]
[1734325839991,2.52771,3956.2,3955.7,0.32031429]
[1734325840192,2.52775,3956.1,3955.7,0.32031429]
[1734325840719,0.8111,3956.1,3955.6,2.13413699]
[1734325840876,2.52799,3955.7,3955.6,2.13413699]
[1734325841083,2.52799,3955.7,3955.2,0.7651]
[1734325841919,0.8111,3955.6,3954.6,0.7651]
[1734325842227,2.52825,3955.4,3954.6,0.7651]
[1734325842422,3.33921,3955.6,3954.6,0.7651]
[1734325842623,0.333921,3955.5,3954.6,0.7651]
[1734325842793,0.333921,3955.5,3953.8,0.7651]
[1734325842794,2.5286,3954.8,3953.8,0.7651]
[1734325842997,0.8111,3955.0,3953.8,0.7651]
[1734325843198,2.52876,3954.5,3953.9,0.12727536]
[1734325844131,2.52863,3954.8,3953.9,0.12727536]
[1734325844425,2.52876,3954.5,3953.9,0.12727536]
[1734325844589,2.52879,3954.5,3953.8,0.7651]
[1734325845930,2.52884,3954.4,3953.8,0.7651]
[1734325846881,1.90418342,3954.9,3953.8,0.7651]
[1734325847123,0.8068,3954.4,3953.8,0.7651]
[1734325847294,2.52908,3954.0,3953.8,0.7651]
[1734325848132,2.52893,3954.3,3953.8,0.7651]
[1734325848818,1.90418342,3954.6,3953.8,0.7651]
[1734325848992,2.52876,3954.5,3953.8,0.7651]
[1734325850906,1.90418342,3954.6,3953.8,0.7651]
[1734325851841,2.52858,3954.8,3953.8,0.7651]
[1734325852397,0.8079,3955.0,3953.8,0.7651]
[1734325852695,2.5287,3954.6,3953.8,0.7651]
[1734325854108,2.52879,3954.5,3953.8,0.7651]
[1734325854535,2.52885,3954.4,3953.8,0.7651]
[1734325855033,2.52889,3954.3,3953.8,0.7651]
[1734325856252,1.29504593,3955.0,3953.8,0.7651]
[1734325856438,2.52866,3954.7,3953.8,0.7651]
[1734325856641,2.52895,3954.3,3953.8,0.7651]
[1734325857352,2.52895,3954.2,3953.8,0.7651]
[1734325857658,2.52866,3954.7,3953.8,0.7651]
[1734325857808,2.52897,3954.2,3953.8,0.7651]
[1734325861073,2.52897,3954.2,3953.1,2.13413699]
[1734325861074,2.52934,3953.6,3953.5,0.8238]
[1734325861494,2.52942,3953.5,3953.2,0.8238]
[1734325861642,0.252897,3954.2,3953.1,2.13413699]
[1734325861643,2.52921,3953.8,3953.1,2.13413699]
[1734325861841,2.52959,3953.2,3953.1,2.13413699]
[1734325862042,2.52981,3952.9,3952.5,0.8238]
[1734325862287,2.52981,3952.9,3951.8,1.05607062]
[1734325862288,2.15937592,3953.2,3951.8,0.8238]
[1734325862492,2.52978,3952.9,3951.8,0.8238]
[1734325862660,2.53017,3952.3,3951.8,0.8238]
[1734325863006,2.95197592,3952.8,3951.8,0.8238]
[1734325863156,2.53039,3952.0,3951.8,0.8238]
[1734325864889,2.5301,3952.5,3951.8,0.8238]
[1734325865760,1.90418342,3952.5,3950.9,0.8156]
[1734325866085,3.0,3952.7,3950.9,0.8156]
[1734325866086,2.53079,3951.4,3950.9,0.8156]
[1734325866394,4.06355934,3952.0,3950.9,0.8156]
[1734325866395,2.53082,3951.3,3950.9,0.8156]
[1734325866691,4.06355934,3952.0,3950.9,0.8156]
[1734325866692,3.0,3951.9,3950.9,0.8156]
[1734325866985,2.53067,3951.6,3950.9,0.8156]
[1734325867143,4.90418342,3951.9,3950.9,0.8156]
[1734325867343,1.90418342,3951.9,3950.9,0.8156]
[1734325867746,2.53054,3951.8,3950.9,0.8156]
[1734325868410,1.90418342,3951.9,3950.9,0.8156]
[1734325868896,1.90418342,3951.9,3951.0,0.334679]
[1734325869302,2.5305,3951.8,3950.9,0.8156]
[1734325869460,1.90418342,3951.9,3950.9,0.8156]
[1734325869461,2.5306,3951.7,3950.9,0.8156]
[1734325869661,4.43461342,3951.9,3950.9,0.8156]
[1734325870564,1.90418342,3951.9,3950.9,0.8156]
[1734325870764,1.90418342,3951.9,3951.0,0.334671]
[1734325871198,4.43462342,3951.9,3950.9,0.8156]
[1734325871681,2.53063,3951.6,3950.9,0.8156]
[1734325872832,4.43466342,3951.9,3950.9,0.8156]
[1734325873012,1.90418342,3951.9,3950.9,0.8156]
[1734325873483,2.53049,3951.8,3950.9,0.8156]
[1734325873821,0.65940493,3951.7,3950.9,0.8156]
[1734325874517,2.53049,3951.8,3950.9,0.8156]
[1734325874665,2.53057,3951.7,3950.9,0.8156]
[1734325875415,1.90418342,3951.9,3950.9,0.8156]
[1734325875787,2.5304,3952.0,3950.9,0.8156]
[1734325875989,2.5304,3952.0,3950.9,1.150272]
[1734325876880,0.7545,3952.2,3951.0,0.7821]
[1734325877082,3.0,3952.1,3951.1,0.7821]
[1734325877321,3.7545,3952.2,3951.1,0.7821]
[1734325877476,2.53043,3951.9,3951.1,0.7821]
[1734325879320,0.628493,3951.9,3951.1,0.7821]
[1734325881202,2.53049,3951.8,3951.1,0.7821]
[1734325881407,2.67748342,3951.7,3950.2,0.8081]
[1734325881725,2.67748342,3951.7,3950.3,1.40643427]
[1734325881875,2.53082,3951.3,3950.3,1.40643427]
[1734325882083,2.53082,3951.3,3950.3,0.8081]
[1734325882322,2.67748342,3951.7,3950.3,0.8081]
[1734325882621,5.20803342,3951.7,3950.0,0.7722]
[1734325882834,1.90418342,3951.7,3950.2,0.7722]
[1734325882973,4.43474342,3951.7,3950.5,0.7722]
[1734325883174,1.90418342,3951.7,3950.5,0.7722]
[1734325883372,0.8219,3951.4,3950.5,0.7722]
[1734325883612,2.53097,3951.1,3950.5,0.7722]
[1734325883976,2.23097,3951.1,3950.5,0.7722]
[1734325884478,2.23097,3951.1,3951.0,0.004435]
[1734325885125,1.90418342,3951.3,3951.0,0.004435]
[1734325886521,2.53094,3951.1,3951.0,0.004435]
[1734325886960,1.90418342,3951.3,3951.0,0.004435]
[1734325887123,4.43499342,3951.3,3951.0,0.004435]
[1734325887900,2.53081,3951.3,3951.0,0.004435]
[1734325893054,2.53094,3951.1,3951.0,0.004435]
[1734325899930,4.06355934,3951.2,3951.0,0.004435]
[1734325901174,6.59442934,3951.2,3951.0,0.004435]
[1734325901819,4.06355934,3951.2,3951.0,0.004435]
[1734325901998,2.93729593,3951.1,3951.0,0.004435]
[1734325902203,3.69159593,3951.1,3951.0,0.004435]
[1734325902518,5.59577935,3951.1,3951.0,0.004435]
[1734325903626,4.43512342,3951.1,3951.0,0.004435]
[1734325903920,1.90418342,3951.1,3951.0,0.004435]
[1734325904471,4.43512342,3951.1,3951.0,0.004435]
[1734325905113,8.19042342,3951.1,3951.0,0.004435]
[1734325907113,9.06477635,3951.1,3951.0,0.004435]
[1734325907316,10.54577998,3951.1,3951.0,0.004435]
[1734325907614,12.91424342,3951.1,3951.0,0.004435]
[1734325908186,13.44541158,3951.1,3951.0,0.004435]
[1734325908521,13.60977928,3951.1,3951.0,0.004435]
[1734325909922,13.44703549,3951.1,3951.0,0.004435]
[1734325910232,13.60975418,3951.1,3951.0,0.004435]
[1734325910436,13.61026195,3951.1,3951.0,0.004435]
[1734325911288,13.44742699,3951.1,3951.0,0.004435]
[1734325911637,13.61044605,3951.1,3951.0,0.004435]
[1734325912637,13.44755117,3951.1,3951.0,0.004435]
[1734325913005,11.85966793,3951.1,3951.0,0.004435]
[1734325914109,12.85603017,3951.1,3951.0,0.004435]
[1734325914990,12.85647767,3951.1,3951.0,0.004435]
[1734325915436,14.44436091,3951.1,3951.0,0.004435]
[1734325916039,14.60737476,3951.1,3951.0,0.004435]
[1734325916227,14.44464424,3951.1,3951.0,0.004435]
[1734325916806,14.60740257,3951.1,3951.0,0.004435]
[1734325917073,15.15740257,3951.1,3951.0,0.004435]
[1734325917233,14.99467185,3951.1,3951.0,0.004435]
[1734325917537,15.157431,3951.1,3951.0,0.004435]
[1734325918445,14.99460888,3951.1,3951.0,0.004435]
[1734325918748,14.99465368,3951.1,3951.0,0.004435]
[1734325919650,14.99488846,3951.1,3951.0,0.004435]
[1734325919942,15.1576251,3951.1,3951.0,0.004435]
[1734325920597,15.15830686,3951.1,3951.0,0.004435]
[1734325921015,14.9954287,3951.1,3951.0,0.004435]
[1734325921217,15.15824943,3951.1,3951.0,0.004435]
[1734325922500,15.1599006,3951.1,3951.0,0.004435]
[1734325922903,14.6099006,3951.1,3951.0,0.004435]
[1734325923140,13.6922853,3951.1,3951.0,0.004435]
[1734325923408,1.90418342,3951.1,3951.0,0.820235]
[1734325923638,3.52718224,3951.3,3951.0,0.820235]
[1734325925345,4.43486342,3951.5,3951.0,0.820235]
[1734325925547,1.90418342,3951.5,3951.0,0.820235]
[1734325926109,0.99636224,3951.3,3951.0,0.820235]
[1734325927358,0.99636224,3951.6,3951.0,0.820235]
[1734325927529,0.99636224,3951.7,3951.0,0.820235]
[1734325927724,0.87639846,3951.6,3951.0,0.820235]
[1734325928358,0.99636224,3951.7,3951.0,0.820235]
[1734325928562,0.87635365,3951.6,3951.0,0.820235]
[1734325929462,0.99636224,3951.7,3951.0,0.820235]
[1734325931931,2.53062,3951.6,3951.0,0.820235]
[1734325937039,0.99636224,3951.7,3951.0,0.820235]
[1734325939626,1.90418342,3951.8,3951.0,0.820235]
[1734325939875,1.58945646,3952.2,3951.1,2.5309]
[1734325939876,1.05956226,3952.2,3951.1,2.5309]
[1734325940165,6.49029792,3952.3,3951.3,0.8252]
[1734325940326,5.43073566,3952.3,3951.3,0.8252]
[1734325940525,5.43073566,3952.3,3951.5,0.8252]
[1734325941155,2.53032,3952.1,3951.5,0.8252]
[1734325941527,0.99636224,3952.0,3951.5,0.8252]
[1734325944167,4.43435342,3952.3,3951.5,0.8252]
[1734325944371,1.90418342,3952.3,3951.5,0.8252]
[1734325944599,1.90418342,3952.7,3951.5,0.8008]
[1734325944747,5.49339568,3953.2,3952.1,2.53027]
[1734325944945,1.90418342,3953.2,3952.2,0.8008]
[1734325945386,1.90418342,3953.2,3952.0,0.99636224]
[1734325945387,1.90418342,3953.2,3952.3,0.8008]
[1734325946185,4.43383342,3953.2,3952.3,0.8008]
[1734325946369,4.43383342,3953.2,3952.1,2.13413699]
[1734325946370,4.43383342,3953.2,3952.4,0.2934937]
[1734325946579,4.43383342,3953.2,3952.5,0.8008]
[1734325947471,1.90418342,3953.2,3952.5,0.8008]
[1734325948084,2.52953,3953.3,3952.5,0.8008]
[1734325949794,1.90418342,3953.4,3952.5,0.8008]
[1734325950581,0.99636224,3953.2,3952.5,0.8008]
[1734325951158,3.52598224,3953.2,3952.5,0.8008]
[1734325952188,1.90418342,3953.4,3952.5,0.8008]
[1734325952189,0.99636224,3952.9,3952.5,0.8008]
[1734325952376,2.52998,3952.6,3952.5,0.8008]
[1734325952572,2.52998,3952.6,3952.2,2.13413699]
[1734325952573,2.53014,3952.4,3952.2,2.13413699]
[1734325952775,0.99636224,3952.3,3952.2,2.13413699]
[1734325953357,2.53014,3952.4,3952.2,2.13413699]
[1734325954592,2.53017,3952.3,3952.2,2.13413699]
[1734325955466,3.52653224,3952.3,3952.2,2.13413699]
[1734325955669,4.06960381,3952.3,3952.2,2.13413699]
[1734325957008,5.97378723,3952.3,3952.2,2.13413699]
[1734325959021,2.53042,3952.0,3951.6,0.7683]
[1734325960185,4.43440342,3952.3,3951.6,0.7683]
[1734325960613,1.90418342,3952.3,3952.2,0.791]
[1734325960790,1.90418342,3952.3,3952.2,0.96973622]
[1734325963145,1.90418342,3953.2,3952.2,0.96973622]
[1734325964030,4.43378342,3953.2,3952.2,0.96973622]
[1734325964890,2.52968,3953.1,3952.2,0.96973622]
[1734325965302,4.43378342,3953.2,3952.2,0.96973622]
[1734325965624,4.43378342,3953.2,3952.3,0.35000862]
[1734325965838,4.43378342,3953.2,3952.4,0.7788]
[1734325966038,2.5296,3953.2,3952.4,0.7788]
[1734325967747,2.52967,3953.1,3952.4,0.7788]
[1734325968043,2.52967,3953.1,3952.5,0.13075448]
[1734325969644,2.52953,3953.3,3952.5,0.13075448]
[1734325970624,2.5296,3953.2,3952.5,0.13075448]
[1734325971321,2.5296,3953.2,3952.6,0.8332]
[1734325976679,1.90418342,3953.4,3952.6,0.8332]
[1734325977225,1.90418342,3953.4,3952.6,1.18261145]
[1734325977462,1.90418342,3953.4,3952.6,0.8332]
[1734325977964,2.52927,3953.7,3952.6,0.8332]
[1734325978159,2.52945,3953.5,3952.6,0.8332]
[1734325979929,2.52946,3953.4,3952.6,0.8332]
[1734325980129,2.52946,3953.4,3952.6,1.169536]
[1734325980719,1.90418342,3953.8,3952.6,0.8332]
[1734325981064,2.52959,3953.3,3952.6,0.8332]
[1734325981953,2.52941,3953.5,3952.6,0.8332]
[1734325982352,2.52983,3952.9,3952.6,0.8332]
[1734325982543,2.52978,3953.0,3952.6,0.8332]
[1734325984589,2.52979,3952.9,3952.6,0.8332]
[1734325986977,2.52986,3952.8,3952.6,0.8332]
[1734325987280,2.5303,3952.1,3951.9,0.7856]
[1734325987485,2.53036,3952.0,3951.9,0.7856]
[1734325987782,2.53036,3952.0,3951.1,0.7856]
[1734325987984,2.53036,3952.0,3951.2,1.19415143]
[1734325988144,2.53036,3952.0,3951.2,0.36395767]
[1734325989498,1.90418342,3952.3,3951.4,0.8276]
[1734325989810,1.90418342,3952.3,3951.7,0.8276]
[1734325990659,2.52995,3952.7,3952.1,0.8276]
[1734325991899,4.43393342,3953.0,3952.1,0.8276]
[1734325995784,2.52979,3952.9,3952.1,0.8276]
[1734325998124,2.52991,3952.8,3952.1,0.8276]
[1734325999215,2.52974,3953.0,3952.1,0.8276]
[1734326000406,2.52974,3953.0,3952.1,1.01596706]
[1734326000780,1.90418342,3953.2,3952.1,0.8276]
[1734326001015,2.52994,3952.7,3952.1,0.8276]
[1734326002082,1.90418342,3953.1,3952.1,0.8276]
[1734326002298,1.90418342,3953.1,3952.2,0.83051734]
[1734326002497,1.90418342,3953.1,3952.2,0.8312]
[1734326002693,1.90418342,3953.1,3952.3,0.8312]
[1734326003621,1.90418342,3953.1,3952.5,0.8296]
[1734326003820,1.90418342,3953.1,3952.7,0.8296]
[1734326005093,1.05956226,3953.7,3952.7,0.8296]
[1734326005094,2.96374568,3953.7,3952.7,0.8296]
[1734326005296,2.96374568,3953.7,3952.7,1.01816706]
[1734326005297,4.71959833,3953.6,3952.7,1.01816706]
[1734326005484,3.40537373,3953.5,3952.7,1.01816706]
[1734326005684,2.52941,3953.5,3952.7,1.01816706]
[1734326006424,2.52941,3953.5,3952.7,0.8296]
[1734326007203,1.05956226,3953.6,3952.7,0.8296]
[1734326007402,2.52946,3953.5,3952.7,0.8296]
[1734326007831,2.52947,3953.4,3952.7,0.8296]
[1734326013605,1.90418342,3953.6,3952.7,0.8296]
[1734326013815,4.43352342,3953.6,3952.8,0.83083011]
[1734326014150,2.52934,3953.6,3952.9,0.7514]
[1734326014724,4.43352342,3953.6,3952.9,0.7514]
[1734326015125,1.90418342,3953.8,3953.1,0.99467433]
[1734326015446,1.90418342,3953.8,3953.5,0.7514]
[1734326020041,2.52922,3953.8,3953.5,0.7514]
[1734326020857,1.90418342,3954.1,3953.5,0.7514]
[1734326021046,2.52927,3953.7,3953.5,0.7514]
[1734326021646,2.52941,3953.5,3952.9,0.759]
[1734326021850,3.95842001,3954.1,3953.0,0.22783284]
[1734326022023,0.7596,3953.6,3952.9,0.759]
[1734326022411,2.52947,3953.4,3952.9,0.759]
[1734326022549,2.52947,3953.4,3951.9,0.34263171]
[1734326022550,0.99467433,3953.2,3952.6,0.8129]
[1734326023258,4.76268042,3953.3,3952.6,0.8129]
[1734326024027,1.90418342,3953.3,3952.6,0.8129]
[1734326024329,1.90418342,3953.3,3952.7,0.8222]
[1734326026079,2.5294,3953.6,3952.7,0.8222]
[1734326026375,2.52941,3953.5,3952.7,0.8222]
[1734326028626,2.52947,3953.4,3952.7,0.8222]
[1734326028825,2.52953,3953.3,3952.7,0.8222]
[1734326031678,2.52959,3953.2,3952.7,0.8222]
[1734326031875,2.52978,3953.0,3952.7,0.8222]
[1734326032809,1.90418342,3953.2,3952.7,0.8222]